bitfinex-derivatives/quotes_BNBF0:USTF0_20250305
["timestamp","ask_amount","ask_price","bid_price","bid_amount"]
[1741168088106,4.67876629,602.86,601.88,0.27541539]
[1741168088305,10.40401849,602.85,601.63,0.27541539]
[1741168088500,0.28895495,602.61,601.64,0.27541539]
[1741168088696,1.19696942,602.6,601.63,0.27541539]
[1741168089516,0.28895495,602.61,601.63,0.27541539]
[1741168089700,0.95353003,602.6,601.63,0.27541539]
[1741168089902,2.61318186,602.59,601.63,0.27541539]
[1741168090099,2.61318186,602.58,601.63,0.27541539]
[1741168090303,2.61318186,602.57,601.63,0.27541539]
[1741168090504,2.61318186,602.56,601.63,0.27541539]
[1741168090704,2.61318186,602.55,601.64,0.27541539]
[1741168090902,2.61318186,602.54,601.65,0.27541539]
[1741168091108,2.61318186,602.53,601.52,0.27541539]
[1741168091307,2.61318186,602.52,601.53,0.27541539]
[1741168091607,0.28902694,602.4,601.54,0.27541539]
[1741168091909,0.28902694,602.4,601.55,0.27541539]
[1741168092108,0.28902694,602.4,601.56,0.27541539]
[1741168092304,0.28902694,602.4,601.52,0.27541539]
[1741168092505,0.28902694,602.4,601.53,0.27541539]
[1741168092708,0.28902694,602.4,601.54,0.27541539]
[1741168092905,0.28902694,602.4,601.55,0.27541539]
[1741168093307,0.28902694,602.4,601.56,0.27541539]
[1741168093505,0.33202184,602.37,601.51,0.27541539]
[1741168093709,0.33202184,602.37,601.52,0.27541539]
[1741168093911,0.33202184,602.37,601.42,0.27541539]
[1741168094108,0.33202184,602.37,601.43,0.27541539]
[1741168094312,0.33202184,602.37,601.44,0.27541539]
[1741168094512,0.33202184,602.37,601.45,0.27541539]
[1741168094714,0.33202184,602.37,601.59,1.22818455]
[1741168094912,0.33202184,602.37,601.6,0.27541539]
[1741168095511,0.28905335,602.36,601.6,0.27541539]
[1741168095907,0.28905335,602.36,601.61,0.27533991]
[1741168096110,0.28905335,602.36,601.62,0.27533991]
[1741168096410,0.28905335,602.36,601.63,0.27533991]
[1741168096606,0.95438539,602.35,601.64,0.27533991]
[1741168096810,0.28905335,602.36,601.59,0.27533991]
[1741168097007,0.28905335,602.36,601.6,0.27533991]
[1741168097220,1.19825422,602.35,601.59,0.27533991]
[1741168097412,1.48730637,602.35,601.6,0.27533991]
[1741168097611,1.48730637,602.35,601.59,0.27533991]
[1741168098008,0.28905215,602.35,601.59,0.27533991]
[1741168098511,0.28905215,602.35,601.6,0.27533991]
[1741168098713,0.28905215,602.35,601.44,0.27533991]
[1741168098912,0.28905215,602.35,601.43,0.28905215]
[1741168098913,1.19836496,602.34,601.45,0.27533991]
[1741168099107,1.19836496,602.34,601.46,0.27533991]
[1741168099313,0.28905215,602.35,601.47,0.27533991]
[1741168099507,0.28905215,602.35,601.44,0.27533991]
[1741168099709,0.28905215,602.35,601.45,0.27533991]
[1741168099909,0.28905215,602.35,601.44,0.27533991]
[1741168100110,0.33202184,602.37,601.45,0.27533991]
[1741168100309,0.95468606,602.36,601.65,1.22818455]
[1741168100509,0.28907136,602.35,601.66,0.27533991]
[1741168101912,1.19904126,602.34,601.66,0.27533991]
[1741168102109,1.19904126,602.34,601.67,0.27533991]
[1741168102313,0.28907136,602.35,601.47,0.27533991]
[1741168102514,0.28907136,602.35,601.48,0.27533991]
[1741168102714,0.28907136,602.35,601.49,0.27533991]
[1741168102921,0.28907136,602.35,601.5,0.27525058]
[1741168103122,0.95526365,602.34,601.47,0.27525058]
[1741168103411,0.28907136,602.35,601.48,0.27525058]
[1741168103616,1.19943565,602.33,601.47,0.27525058]
[1741168103824,1.19943565,602.33,601.46,1.22818455]
[1741168103825,1.19943565,602.33,601.48,0.27525058]
[1741168104011,1.19943565,602.32,601.47,0.27525058]
[1741168104211,1.19943565,602.32,601.48,0.27525058]
[1741168104410,0.28907136,602.35,601.47,0.27525058]
[1741168104716,0.28907136,602.35,601.48,0.27525058]
[1741168104917,0.28907136,602.35,601.49,0.27525058]
[1741168105117,0.28907136,602.35,601.47,0.27525058]
[1741168105311,0.28907136,602.35,601.48,0.27525058]
[1741168105517,0.28907136,602.35,601.49,0.27525058]
[1741168105718,0.28907136,602.35,601.47,0.27525058]
[1741168105912,0.28907136,602.35,601.48,0.27525058]
[1741168106117,0.28907136,602.35,601.49,0.27525058]
[1741168106417,0.28907136,602.35,601.5,0.27525058]
[1741168106618,0.28907136,602.35,601.47,0.27525058]
[1741168106825,0.28907136,602.35,601.48,0.27525058]
[1741168107014,0.28907136,602.35,601.47,0.27525058]
[1741168107218,0.28907136,602.35,601.51,1.22818455]
[1741168107418,0.28907136,602.35,601.52,0.27525058]
[1741168108628,0.33202184,602.37,601.52,0.27525058]
[1741168109619,0.33202184,602.37,601.53,0.27525058]
[1741168109918,0.33202184,602.37,601.54,0.27525058]
[1741168110319,0.33202184,602.37,601.55,0.27525058]
[1741168110519,0.33202184,602.37,601.44,0.27525058]
[1741168110721,0.33202184,602.37,601.45,0.27525058]
[1741168111117,0.33202184,602.37,601.73,1.22818455]
[1741168111321,0.28897414,602.6,601.74,0.27525058]
[1741168111517,2.61506198,602.59,601.74,0.27525058]
[1741168111717,2.61506198,602.58,601.74,0.27525058]
[1741168111917,1.1999446,602.58,601.74,0.27525058]
[1741168112522,1.1999446,602.57,601.74,0.27525058]
[1741168113420,0.28893815,602.64,601.75,0.27525058]
[1741168113624,2.6148025,602.63,601.68,0.27525058]
[1741168113825,2.6148025,602.62,601.69,0.27525058]
[1741168114033,2.6148025,602.61,601.7,0.27525058]
[1741168114225,2.6148025,602.6,601.7,0.27525058]
[1741168114429,1.19965842,602.6,601.71,0.27525058]
[1741168114620,1.19965842,602.6,601.72,0.27525058]
[1741168114825,1.19965842,602.6,601.73,0.27525058]
[1741168115020,1.19965842,602.59,601.74,0.27525058]
[1741168115224,1.19965842,602.59,601.71,0.27525058]
[1741168115425,1.19965842,602.59,601.72,0.27525058]
[1741168115622,1.19965842,602.59,601.71,0.27525058]
[1741168115823,0.49777772,602.82,601.72,0.27525058]
[1741168116029,7.29450984,602.81,601.73,0.27525058]
[1741168116328,7.29450984,602.81,601.7,1.22818455]
[1741168116329,7.29450984,602.8,601.74,0.27525058]
[1741168116525,6.79673212,602.79,601.77,1.22818455]
[1741168116724,6.79673212,602.78,601.78,0.27525058]
[1741168117031,6.79673212,602.77,601.79,0.27525058]
[1741168117231,9.91317307,602.76,601.78,0.27525058]
[1741168117427,4.14217747,602.75,601.79,0.27525058]
[1741168117628,2.61412773,602.74,601.8,0.27525058]
[1741168117823,2.61412773,602.73,601.78,0.27525058]
[1741168118124,2.61412773,602.72,601.79,0.27525058]
[1741168118329,3.81275886,602.71,601.78,0.27525058]
[1741168118528,2.61412218,602.7,601.79,0.27525058]
[1741168118725,1.19863113,602.71,601.76,0.27525058]
[1741168118930,3.81188053,602.7,601.77,0.27525058]
[1741168119130,3.81188053,602.7,601.75,1.22818455]
[1741168119131,1.19863113,602.7,601.78,0.27451186]
[1741168119326,1.19863113,602.69,601.79,0.27451186]
[1741168119523,1.19863113,602.69,601.76,0.27451186]
[1741168119724,1.19863113,602.69,601.77,0.27451186]
[1741168119924,0.28887699,602.83,601.69,0.28889138]
[1741168119925,0.28887699,602.83,601.76,0.27451186]
[1741168120125,2.61263353,602.82,601.77,0.27451186]
[1741168120329,0.9537866,602.81,601.7,0.27451186]
[1741168120527,2.15077473,602.81,601.71,0.27451186]
[1741168120725,1.19698813,602.81,601.72,0.27451186]
[1741168120928,0.28885181,602.93,601.73,0.27451186]
[1741168121136,2.61191709,602.92,601.74,0.27451186]
[1741168121326,0.28885181,602.93,601.75,0.27451186]
[1741168121534,2.61130546,602.92,601.76,0.27451186]
[1741168121724,1.19609428,602.91,601.77,0.27451186]
[1741168121925,1.19609428,602.91,601.78,0.27451186]
[1741168122124,1.19609428,602.91,601.79,0.27451186]
[1741168122328,1.19609428,602.91,601.73,0.33237498]
[1741168122526,0.28885181,602.93,601.74,0.27419922]
[1741168122828,0.28885181,602.93,601.73,0.33237498]
[1741168122829,0.28885181,602.93,602.03,1.22818455]
[1741168123026,1.19558725,602.92,602.04,0.27419922]
[1741168123225,1.19558725,602.92,602.05,0.27419922]
[1741168123430,1.19558725,602.92,602.06,0.27419922]
[1741168123630,1.19558725,602.92,602.07,0.27419922]
[1741168123829,0.28885181,602.93,602.08,0.27419922]
[1741168124026,0.28885181,602.93,602.09,0.27419922]
[1741168124331,1.28330479,602.92,602.1,0.27419922]
[1741168124531,1.28330479,602.92,602.03,1.22818455]
[1741168124532,2.94197416,602.91,602.04,0.27419922]
[1741168124732,2.94197967,602.9,602.05,0.27419922]
[1741168124932,2.94198517,602.89,602.06,0.27419922]
[1741168125131,2.61028639,602.88,602.04,0.27419922]
[1741168125432,2.47789006,602.87,602.04,0.27419922]
[1741168125634,0.33175198,602.86,601.94,0.27419922]
[1741168125833,0.33175198,602.86,601.95,0.27419922]
[1741168126029,0.33175198,602.86,601.96,0.27419922]
[1741168126229,0.33175198,602.86,601.97,0.27419922]
[1741168126433,0.33175198,602.86,601.94,0.27419922]
[1741168126634,0.33175198,602.86,601.95,0.27419922]
[1741168126934,0.33175198,602.86,601.96,0.27419922]
[1741168127129,0.33175198,602.86,601.97,0.27419922]
[1741168127333,0.33175198,602.86,601.98,0.27419922]
[1741168127635,0.28883863,602.85,601.99,0.27419922]
[1741168127932,0.28883863,602.85,602.0,0.27419922]
[1741168128336,0.28883863,602.85,602.01,0.27419922]
[1741168128533,0.28883863,602.85,601.79,0.27419922]
[1741168128736,0.28883863,602.85,601.8,0.27419922]
[1741168128934,0.28883863,602.85,601.81,0.27419922]
[1741168129129,0.28883863,602.85,601.79,0.27419922]
[1741168129333,0.28883863,602.85,601.82,0.27419922]
[1741168129529,2.6099564,602.84,601.83,0.27419922]
[1741168129731,2.6099564,602.83,601.84,0.27419922]
[1741168129929,0.95092707,602.82,601.85,0.27419922]
[1741168130235,0.33175198,602.86,601.86,0.27419922]
[1741168130532,0.28888778,602.81,601.87,0.27419922]
[1741168130835,0.331785,602.8,601.88,0.27419922]
[1741168131037,0.331785,602.8,601.82,0.27419922]
[1741168132938,0.95093874,602.79,601.83,0.27434911]
[1741168133137,0.331785,602.8,601.84,0.27434911]
[1741168133339,0.331785,602.8,601.85,0.27434911]
[1741168133540,0.28889857,602.78,601.86,0.27434911]
[1741168133741,0.33180151,602.77,601.82,0.27434911]
[1741168133940,0.33180151,602.77,601.83,0.27434911]
[1741168134135,0.33180151,602.77,601.84,0.27434911]
[1741168134338,0.33180151,602.77,601.85,0.27434911]
[1741168134535,0.33180151,602.77,601.86,0.27434911]
[1741168134734,0.33180151,602.77,601.87,0.27434911]
[1741168135041,2.6101534,602.76,601.88,0.27434911]
[1741168135237,2.6101534,602.75,601.89,0.27434911]
[1741168135541,2.94197143,602.74,601.9,0.27434911]
[1741168135739,2.94197143,602.74,601.81,0.28889857]
[1741168135740,2.94197693,602.73,601.91,0.27434911]
[1741168135942,2.94212687,602.72,601.82,0.27434911]
[1741168136237,1.28286199,602.71,601.83,0.27434911]
[1741168136445,1.52603312,602.71,601.82,0.27434911]
[1741168136645,1.52603312,602.71,601.83,0.27434911]
[1741168136849,1.52603312,602.71,601.82,0.27434911]
[1741168137146,0.33183454,602.71,601.83,0.27434911]
[1741168137446,0.33183454,602.71,601.84,0.27434911]
[1741168137649,0.33183454,602.71,601.82,0.27434911]
[1741168137946,0.33183454,602.71,601.81,0.28889857]
[1741168139048,0.33183454,602.71,601.82,0.27446111]
[1741168139449,0.28891177,602.7,601.83,0.27446111]
[1741168139647,0.28891177,602.7,601.84,0.27446111]
[1741168139847,0.28891177,602.7,601.78,0.27446111]
[1741168140042,0.28891177,602.7,601.79,0.27446111]
[1741168140248,0.28891177,602.7,601.8,0.27444163]
[1741168140447,0.28891177,602.7,601.78,0.27444163]
[1741168140648,0.28891177,602.7,601.79,0.27444163]
[1741168140842,0.28891177,602.7,601.78,0.27444163]
[1741168141043,0.33184555,602.69,601.79,0.27444163]
[1741168141348,0.33184555,602.69,601.8,0.27444163]
[1741168141545,0.33184555,602.69,601.78,0.27444163]
[1741168141749,0.33184555,602.69,601.79,0.27444163]
[1741168141947,0.33184555,602.69,601.8,0.27444163]
[1741168142251,0.33184555,602.69,601.81,0.27444163]
[1741168142445,0.28895735,602.68,601.79,1.22818455]
[1741168142650,0.33185657,602.67,601.8,0.27454727]
[1741168144249,0.33185657,602.67,601.79,1.22818455]
[1741168144446,0.33185657,602.67,601.8,0.27466639]
[1741168144649,0.33185657,602.67,601.81,0.27466639]
[1741168144850,0.33185657,602.67,601.82,0.27466639]
[1741168145046,0.33185657,602.67,601.83,0.27466639]
[1741168145250,0.33185657,602.67,601.84,0.27466639]
[1741168145451,0.28895735,602.66,601.85,0.27466639]
[1741168145652,0.33186758,602.65,601.72,0.27466639]
[1741168145849,0.33186758,602.65,601.73,0.27466639]
[1741168146051,0.33186758,602.65,601.72,0.27466639]
[1741168146252,0.32178249,602.65,601.73,0.27466639]
[1741168146451,0.32178249,602.65,601.74,0.27466639]
[1741168146646,0.32178249,602.65,601.75,0.27466639]
[1741168146851,0.32178249,602.65,601.76,0.27466639]
[1741168147048,0.32178249,602.65,601.72,0.27466639]
[1741168147249,0.32178249,602.65,601.73,0.27466639]
[1741168147452,0.32178249,602.65,601.82,1.22818455]
[1741168147750,0.32178249,602.65,601.83,0.27466639]
[1741168149748,0.32178249,602.65,601.81,0.27466639]
[1741168149950,0.32178249,602.65,601.82,0.27466639]
[1741168150150,0.32178249,602.65,601.83,0.27466639]
[1741168150355,0.32178249,602.65,601.84,0.27466639]
[1741168150550,0.32178249,602.65,601.85,0.27466639]
[1741168150759,0.32178249,602.65,601.86,0.27466639]
[1741168150958,0.32178249,602.65,601.81,0.27466639]
[1741168151254,0.32178249,602.65,601.82,0.27466639]
[1741168151454,0.32178249,602.65,601.81,0.27466639]
[1741168151751,0.32178249,602.65,601.82,0.27466639]
[1741168151952,0.32178249,602.65,602.0,1.22818455]
[1741168152150,0.32178249,602.65,602.01,0.27466639]
[1741168152953,0.32178249,602.65,602.0,1.22818455]
[1741168153154,0.32178249,602.65,602.01,0.27390579]
[1741168154163,0.32178249,602.65,601.81,0.27390579]
[1741168154364,0.32178249,602.65,601.82,0.27390579]
[1741168154564,0.32178249,602.65,601.81,0.27390579]
[1741168154863,0.32178249,602.65,601.82,0.27390579]
[1741168155060,0.32178249,602.65,601.83,0.27390579]
[1741168155257,0.32178249,602.65,601.84,0.27390579]
[1741168155462,0.32178249,602.65,601.85,0.27390579]
[1741168155663,0.32178249,602.65,601.86,0.27390579]
[1741168155861,0.32178249,602.65,601.81,0.27390579]
[1741168156057,0.32178249,602.65,601.82,0.27390579]
[1741168156358,0.32178249,602.65,601.8,1.22818455]
[1741168156558,0.32178249,602.65,601.81,0.27393729]
[1741168158162,0.32178249,602.65,601.82,0.27394525]
[1741168158363,0.32178249,602.65,601.81,0.27394525]
[1741168158560,0.32178249,602.65,601.82,0.27394525]
[1741168158760,0.32178249,602.65,601.81,0.27394525]
[1741168158965,0.32178249,602.65,601.82,0.27394525]
[1741168159265,0.32178249,602.65,601.83,0.27394525]
[1741168159469,0.32178249,602.65,601.8,0.27394525]
[1741168159765,0.32178249,602.65,601.81,0.27394525]
[1741168159965,0.32178249,602.65,601.8,0.27394525]
[1741168160360,0.32178249,602.65,601.77,1.22818455]
[1741168160361,0.32178249,602.65,601.79,0.28885062]
[1741168160564,0.32178249,602.65,601.8,0.27394525]
[1741168161164,0.32178249,602.65,601.89,1.22818455]
[1741168161362,0.32178249,602.65,601.9,0.27394525]
[1741168163365,0.32178249,602.65,601.9,1.22818455]
[1741168163570,0.32178249,602.65,601.91,0.27393481]
[1741168165271,0.32178249,602.65,601.92,0.27394577]
[1741168165570,0.32178249,602.65,601.93,0.27394577]
[1741168165769,0.32178249,602.65,601.94,0.27394577]
[1741168165969,0.32178249,602.65,601.95,0.27394577]
[1741168166265,0.32178249,602.65,601.96,0.27394577]
[1741168166571,0.32178249,602.65,601.97,0.27394577]
[1741168166765,0.32178249,602.65,601.98,0.27394577]
[1741168166967,0.32178249,602.65,601.99,0.27393134]
[1741168167165,0.32178249,602.65,602.0,0.27393134]
[1741168167368,7.28957128,603.3,601.89,0.27393134]
[1741168167570,7.28957128,603.3,601.9,0.27393134]
[1741168167571,0.33152101,603.28,601.9,0.27393134]
[1741168167872,0.28877511,602.94,601.91,0.27393134]
[1741168168067,4.67725848,603.26,601.89,0.27393134]
[1741168168372,7.2895516,603.25,601.89,0.27393134]
[1741168168572,7.2895516,603.24,601.89,0.27393134]
[1741168168872,0.33155399,603.22,601.9,0.27387726]
[1741168169067,7.2895934,603.21,601.89,0.27387726]
[1741168169271,0.33157048,603.19,601.89,0.27387726]
[1741168169470,7.2895934,603.18,601.89,0.2887859]
[1741168169671,7.62117487,603.17,601.9,0.27387726]
[1741168169876,7.62118037,603.16,601.9,0.27387726]
[1741168170075,7.62118587,603.15,601.9,0.27387726]
[1741168170276,7.62119137,603.14,601.9,0.27387726]
[1741168170577,7.62119686,603.13,601.9,0.27387726]
[1741168170774,7.12548623,603.12,601.9,0.27387726]
[1741168170971,7.12549173,603.11,601.9,0.27387726]
[1741168171170,6.79387727,603.1,601.9,0.27387726]
[1741168171371,7.29144917,603.09,601.9,0.27387726]
[1741168171570,7.12550823,603.08,601.9,0.27387726]
[1741168171775,6.79387727,603.07,601.9,0.27387726]
[1741168171970,6.79387727,603.07,601.89,0.2887859]
[1741168171971,6.79387727,603.06,601.91,0.27387726]
[1741168172172,6.79387727,603.06,601.55,1.47554404]
[1741168172173,7.12552472,603.05,601.92,0.27387726]
[1741168172370,4.47187026,603.04,601.93,0.27387726]
[1741168172575,2.94468817,603.03,601.94,0.27387726]
[1741168172770,2.94469367,603.02,601.95,0.27387726]
[1741168172972,3.81107377,603.01,601.96,0.27387726]
[1741168173173,2.61302972,603.0,601.97,0.27387726]
[1741168173374,0.95449224,602.99,601.98,0.27387726]
[1741168173583,1.19804405,603.01,601.99,0.27387726]
[1741168173776,1.19804405,602.98,602.0,0.27387726]
[1741168173971,0.95434822,602.97,602.18,1.22818455]
[1741168174171,1.19804405,602.98,602.19,0.27387726]
[1741168174375,3.81087481,602.97,602.19,0.27387726]
[1741168174574,2.61283076,602.96,602.19,0.27387726]
[1741168174876,0.95431874,602.95,602.19,0.27387726]
[1741168175176,1.19804405,602.95,602.19,0.27387726]
[1741168175374,2.61294238,602.94,602.19,0.27387726]
[1741168175570,3.81098643,602.93,602.19,0.27387726]
[1741168175880,2.94466134,602.92,602.2,0.27397125]
[1741168176178,4.14271089,602.91,602.21,0.27397125]
[1741168176476,2.94467235,602.9,602.13,1.22818455]
[1741168176677,1.2862639,602.89,602.14,0.27398063]
[1741168176872,2.48434985,602.88,602.14,0.27398063]
[1741168177071,2.94506317,602.87,602.13,1.22818455]
[1741168177275,2.94512063,602.86,602.13,1.22818455]
[1741168177476,0.33175748,602.85,602.13,1.22818455]
[1741168177777,1.19804405,602.84,602.13,1.22818455]
[1741168177977,0.33176849,602.83,602.13,1.22818455]
[1741168178379,1.19804405,602.82,602.13,1.22818455]
[1741168178677,1.48687429,602.82,601.89,0.28883024]
[1741168178877,0.33177949,602.81,601.9,0.27402215]
[1741168179075,1.19804405,602.8,601.9,0.27402215]
[1741168179272,2.94562895,602.79,601.45,0.27402215]
[1741168179574,0.95478351,602.78,601.46,0.60654634]
[1741168179780,2.94564497,602.77,601.78,0.28894175]
[1741168180084,2.94570758,602.76,601.79,0.27402215]
[1741168180286,0.33181252,602.75,601.47,0.62146041]
[1741168180472,1.52985657,602.75,601.48,0.33251313]
[1741168181178,0.33181252,602.75,601.48,0.33251313]
[1741168181375,0.28894175,602.74,601.49,0.27446869]
[1741168181573,0.33182353,602.73,601.49,0.60697629]
[1741168181777,2.61401131,602.72,601.5,0.27446869]
[1741168181976,0.28894175,602.74,601.79,1.22818455]
[1741168181977,2.94584585,602.71,601.79,1.22818455]
[1741168182179,2.94585136,602.7,601.8,0.27446869]
[1741168182377,2.94585686,602.69,601.8,0.27446869]
[1741168182589,2.94588901,602.68,601.8,0.27446869]
[1741168182782,2.61403795,602.67,601.79,1.22818455]
[1741168182973,3.81288405,602.66,601.8,0.27461534]
[1741168183174,2.61403795,602.65,601.8,0.27461534]
[1741168183378,2.94591104,602.64,601.83,1.22818455]
[1741168183577,1.2867202,602.63,601.84,0.27461534]
[1741168183778,0.95471074,602.62,601.84,0.27461534]
[1741168183975,0.95472925,602.61,601.84,0.27461534]
[1741168184175,0.95475363,602.6,601.84,0.27461534]
[1741168184376,0.33190062,602.59,601.84,0.27461534]
[1741168184677,0.33190062,602.59,601.85,0.27467528]
[1741168184876,0.33190062,602.59,601.86,0.27467528]
[1741168185078,0.33190062,602.59,601.83,1.22818455]
[1741168185079,0.33190062,602.59,601.87,0.27467528]
[1741168185276,0.33190062,602.59,601.84,0.27467528]
[1741168185479,0.33190062,602.59,601.85,0.27467528]
[1741168185682,0.33190062,602.59,601.86,0.27467528]
[1741168185983,2.61401556,602.58,601.87,0.27467528]
[1741168186176,2.9459272,602.57,601.78,1.22818455]
[1741168186381,0.33191715,602.56,601.79,0.27469383]
[1741168187587,0.28896334,602.55,601.79,0.27469383]
[1741168188485,0.33192817,602.54,601.83,1.22818455]
[1741168188687,0.33192817,602.54,601.84,0.27469383]
[1741168189780,0.33192817,602.54,601.83,1.22818455]
[1741168189979,0.33192817,602.54,601.84,0.27447529]
[1741168190684,0.33192817,602.54,601.78,0.27447529]
[1741168190886,0.33192817,602.54,601.77,1.22818455]
[1741168190887,0.33192817,602.54,601.79,0.27447529]
[1741168191193,0.33192817,602.54,601.8,0.27447529]
[1741168191393,0.33192817,602.54,601.78,0.27447529]
[1741168191582,0.33192817,602.54,601.79,0.27442834]
[1741168191787,0.33192817,602.54,601.78,0.27442834]
[1741168192082,0.33192817,602.54,601.79,0.27442834]
[1741168192286,0.33192817,602.54,601.78,0.27442834]
[1741168192486,0.33192817,602.54,601.79,0.27442834]
[1741168192684,0.33192817,602.54,601.78,0.27442834]
[1741168192893,0.33192817,602.54,601.79,0.27442834]
[1741168193086,0.33192817,602.54,601.71,0.27442834]
[1741168193288,0.33192817,602.54,601.72,0.27442834]
[1741168193488,0.28898614,602.53,601.73,0.27442834]
[1741168193690,1.28476447,602.52,601.71,0.27442834]
[1741168193889,0.33194469,602.51,601.71,0.27442834]
[1741168194285,1.19630043,602.5,601.71,0.27442834]
[1741168194491,0.33195571,602.49,601.71,0.27442834]
[1741168195189,0.33195571,602.49,601.51,0.27442834]
[1741168195492,0.33195571,602.49,601.52,0.27442834]
[1741168195691,0.33195571,602.49,601.53,0.27442834]
[1741168195893,0.33195571,602.49,601.54,0.27442834]
[1741168196086,0.33195571,602.49,601.51,0.27442834]
[1741168196287,0.33195571,602.49,601.52,0.27442834]
[1741168196491,0.28903775,602.48,601.53,0.27442834]
[1741168196686,2.94416661,602.47,601.53,0.27442834]
[1741168196893,2.94423548,602.46,601.54,0.27442834]
[1741168197095,1.28416491,602.45,601.55,0.27442834]
[1741168197291,0.33198326,602.44,601.56,0.27442834]
[1741168197595,1.52711072,602.44,601.57,0.27442834]
[1741168197792,1.52711072,602.44,601.45,0.27442834]
[1741168197994,1.19512746,602.43,601.46,0.27442834]
[1741168198195,0.33199428,602.42,601.43,0.27442834]
[1741168198495,0.33199428,602.42,601.42,0.28907256]
[1741168198496,1.52712174,602.42,601.44,0.27442834]
[1741168198690,1.52712174,602.42,601.43,0.27442834]
[1741168198893,1.19512746,602.41,601.43,0.27442834]
[1741168199094,0.33200531,602.4,601.43,0.27442834]
[1741168199493,0.62108988,602.4,601.43,0.27442834]
[1741168199889,0.62108988,602.4,601.42,0.28908457]
[1741168200090,0.62108988,602.4,601.44,0.27453301]
[1741168200289,0.62108988,602.4,601.43,0.27453301]
[1741168200595,0.62108988,602.4,601.44,0.27453301]
[1741168200796,0.62108988,602.4,601.43,0.27453301]
[1741168200995,0.62108988,602.4,601.44,0.27453301]
[1741168201197,0.62108988,602.4,601.43,0.27453301]
[1741168202089,0.62108988,602.4,601.44,0.27453301]
[1741168202291,0.33200531,602.4,601.36,0.27453301]
[1741168202597,0.28916504,602.39,601.37,0.27453301]
[1741168202792,0.33201633,602.38,601.38,0.27453301]
[1741168202991,0.33201633,602.38,600.9,1.22818455]
[1741168203195,0.33201633,602.38,600.91,0.60751008]
[1741168203394,0.33201633,602.38,600.92,0.60750454]
[1741168203590,0.33201633,602.38,600.9,1.22818455]
[1741168203591,0.33201633,602.38,600.93,0.607499]
[1741168203894,0.33201633,602.38,601.15,1.22818455]
[1741168204097,0.33201633,602.38,601.16,0.27468154]
[1741168204398,0.33201633,602.38,601.17,0.27468154]
[1741168204600,0.33201633,602.38,601.18,0.27468154]
[1741168204794,0.33201633,602.38,601.19,0.27468154]
[1741168205000,0.33201633,602.38,601.2,0.27468154]
[1741168205198,0.33201633,602.38,601.21,0.27468154]
[1741168205391,0.33201633,602.38,601.22,0.27468154]
[1741168205593,0.28912419,602.37,601.23,0.27468154]
[1741168205897,0.33202735,602.36,601.24,0.27468154]
[1741168206100,0.33202735,602.36,601.25,0.27468154]
[1741168206298,0.33202735,602.36,601.26,0.27468154]
[1741168206490,0.33202735,602.36,601.27,0.27468154]
[1741168206695,0.33202735,602.36,601.28,0.27468154]
[1741168206896,0.33202735,602.36,601.11,0.27468154]
[1741168207197,0.33202735,602.36,601.12,0.60739381]
[1741168207398,0.33202735,602.36,601.13,0.60738827]
[1741168207697,0.33202735,602.36,601.14,0.27468154]
[1741168207891,0.33202735,602.36,601.15,0.27468154]
[1741168208090,0.33202735,602.36,601.16,0.27468154]
[1741168208298,0.33202735,602.36,601.17,0.27466943]
[1741168208493,0.28914582,602.35,601.18,0.27466943]
[1741168208700,0.28914582,602.35,601.19,0.27466943]
[1741168208896,0.33203838,602.34,601.2,0.27466943]
[1741168209096,0.33203838,602.34,601.21,0.27466943]
[1741168209292,0.33203838,602.34,601.22,0.27466943]
[1741168209498,0.33203838,602.34,601.23,0.27466943]
[1741168209698,0.33203838,602.34,601.24,0.27466943]
[1741168209893,0.33203838,602.34,601.25,0.27466943]
[1741168210093,0.33203838,602.34,601.26,0.27466943]
[1741168210293,0.33203838,602.34,601.27,0.27466943]
[1741168210594,0.33203838,602.34,601.28,0.27466943]
[1741168210793,0.33203838,602.34,601.29,0.27466943]
[1741168211099,0.33203838,602.34,601.3,0.27466943]
[1741168211295,0.33203838,602.34,601.31,0.27466943]
[1741168211491,0.33203838,602.34,601.32,0.27466943]
[1741168211700,0.33203838,602.34,601.33,0.27466943]
[1741168211900,0.33203838,602.34,601.34,0.27466943]
[1741168212092,0.33203838,602.34,601.35,0.27466943]
[1741168212293,0.33203838,602.34,601.36,0.27466943]
[1741168212492,0.33203838,602.34,601.37,0.27466943]
[1741168212692,0.33203838,602.34,601.38,0.27466943]
[1741168212897,0.33203838,602.34,601.39,0.27466943]
[1741168213094,0.33203838,602.34,601.4,0.27466943]
[1741168213498,0.33203838,602.34,601.41,0.27482786]
[1741168213699,0.33203838,602.34,601.42,0.27482786]
[1741168213894,0.33203838,602.34,601.27,1.22818455]
[1741168213895,0.33203838,602.34,601.43,0.27482786]
[1741168214094,0.33203838,602.34,601.44,0.27482786]
[1741168214404,0.33203838,602.34,601.45,0.27482786]
[1741168214602,0.33203838,602.34,601.46,0.27482786]
[1741168214797,0.33203838,602.34,601.47,0.27480725]
[1741168214994,0.33203838,602.34,601.42,0.27480725]
[1741168215302,0.33203838,602.34,601.43,0.27480765]
[1741168215501,0.33203838,602.34,601.44,0.27480765]
[1741168215803,0.33203838,602.34,601.45,0.27480765]
[1741168216098,0.33203838,602.34,601.46,0.27480765]
[1741168216300,0.33203838,602.34,601.47,0.27480765]
[1741168216602,0.33203838,602.34,601.54,1.22818455]